bitfinex-derivatives/quotes_BTCF0:USTF0_20250823
["timestamp","ask_amount","ask_price","bid_price","bid_amount"]
[1755921655389,1.29249453,115600.0,115590.0,1.53623893]
[1755921655591,1.6746978,115600.0,115590.0,1.53623893]
[1755921658785,1.6746978,115600.0,115590.0,1.17543893]
[1755921658985,1.6746978,115600.0,115590.0,1.33104618]
[1755921659489,1.37903573,115600.0,115590.0,1.33104618]
[1755921659788,1.6746978,115600.0,115590.0,1.33104618]
[1755921660189,1.6746978,115600.0,115590.0,1.21057618]
[1755921660392,2.2854978,115600.0,115590.0,1.12335618]
[1755921660592,2.2854978,115600.0,115590.0,1.15916893]
[1755921660791,1.9246978,115600.0,115590.0,1.24339893]
[1755921662388,1.37903573,115600.0,115590.0,1.24339893]
[1755921662696,1.6746978,115600.0,115590.0,1.60419893]
[1755921664992,1.37903573,115600.0,115590.0,1.60419893]
[1755921665295,1.6675778,115600.0,115590.0,1.71316203]
[1755921666998,1.37191573,115600.0,115590.0,1.71316203]
[1755921667196,1.6675778,115600.0,115590.0,1.71316203]
[1755921671290,1.6675778,115600.0,115590.0,1.60419893]
[1755921671794,1.6675778,115600.0,115590.0,1.24339893]
[1755921672196,1.6675778,115600.0,115590.0,1.60419893]
[1755921673699,0.03390664,115600.0,115590.0,3.33767217]
[1755921673893,0.96909667,115630.0,115620.0,0.57834]
[1755921674092,0.96909667,115630.0,115620.0,0.87400207]
[1755921674288,1.77385667,115630.0,115620.0,0.57834]
[1755921674488,1.77385667,115630.0,115620.0,0.66484893]
[1755921674789,1.77465667,115630.0,115620.0,0.77389024]
[1755921674996,0.3195765,115620.0,115610.0,0.93914]
[1755921675191,1.24570064,115620.0,115610.0,0.57834]
[1755921675392,1.52675718,115620.0,115610.0,0.08648648]
[1755921675592,0.262154,115610.0,115600.0,0.93914]
[1755921675798,1.75476607,115610.0,115600.0,0.93914]
[1755921676097,1.75476607,115610.0,115600.0,1.02562648]
[1755921676300,1.75476607,115610.0,115600.0,1.52562648]
[1755921676504,1.819904,115610.0,115600.0,0.81431648]
[1755921676797,2.11556607,115610.0,115600.0,0.5]
[1755921677192,1.819904,115610.0,115600.0,0.57417]
[1755921677399,2.11556607,115610.0,115600.0,0.75251]
[1755921677593,2.11356607,115610.0,115600.0,1.07834]
[1755921677993,2.11356607,115610.0,115600.0,0.99411]
[1755921678200,2.11356607,115610.0,115600.0,0.49511]
[1755921678403,2.14643725,115610.0,115600.0,0.49511]
[1755921678704,1.817904,115610.0,115600.0,0.49511]
[1755921678907,2.14643725,115610.0,115600.0,0.49411]
[1755921679299,2.14643725,115610.0,115600.0,0.57834]
[1755921680300,1.78563725,115610.0,115600.0,0.66484144]
[1755921680502,0.56785,115610.0,115600.0,1.02564144]
[1755921680702,1.37241,115610.0,115600.0,1.02564144]
[1755921680901,1.37241,115610.0,115600.0,1.18124869]
[1755921681307,1.37241,115610.0,115600.0,1.68124869]
[1755921681507,1.4589441,115610.0,115600.0,1.68124869]
[1755921682301,1.78747735,115610.0,115600.0,1.68124869]
[1755921682501,1.78747735,115610.0,115600.0,1.52564144]
[1755921682706,1.78747735,115610.0,115600.0,1.59657144]
[1755921683405,2.14827735,115610.0,115600.0,0.70296]
[1755921684008,2.14827735,115610.0,115600.0,0.96924]
[1755921684206,2.14827735,115610.0,115600.0,1.06504]
[1755921684405,2.14827735,115610.0,115600.0,1.14927]
[1755921686205,1.4589441,115610.0,115600.0,1.14927]
[1755921686409,1.78747735,115610.0,115600.0,1.23577144]
[1755921687512,1.4589441,115610.0,115600.0,1.23577144]
[1755921687708,1.78747735,115610.0,115600.0,1.23577144]
[1755921688409,1.78747735,115610.0,115600.0,1.59657144]
[1755921688898,1.26172,115610.0,115600.0,1.59657144]
[1755921689104,0.33677754,115620.0,115600.0,2.71549629]
[1755921689305,1.48609754,115620.0,115610.0,0.54925]
[1755921689506,1.39956654,115620.0,115610.0,0.6357842]
[1755921689706,1.39956654,115620.0,115610.0,0.9965842]
[1755921690010,0.59520654,115620.0,115610.0,1.08308564]
[1755921690212,0.16801654,115620.0,115610.0,1.33308564]
[1755921690398,0.16801654,115620.0,115610.0,1.66161889]
[1755921690604,0.03025654,115620.0,115610.0,1.48869289]
[1755921690800,1.2269738,115630.0,115620.0,0.54925]
[1755921691008,1.2269738,115630.0,115620.0,0.9965767]
[1755921691009,1.02431,115630.0,115620.0,0.9965767]
[1755921691303,1.1661939,115630.0,115620.0,0.9965767]
[1755921691510,0.9678239,115630.0,115620.0,1.08306318]
[1755921692212,1.0849639,115630.0,115620.0,1.08306318]
[1755921692406,0.001,115630.0,115620.0,2.46641643]
[1755921692609,0.69659309,115650.0,115640.0,0.54925]
[1755921692809,1.50087309,115650.0,115640.0,0.54925]
[1755921693207,1.50087309,115650.0,115640.0,0.63572152]
[1755921693610,1.50087309,115650.0,115640.0,1.13572152]
[1755921694113,1.82940634,115650.0,115640.0,1.24432082]
[1755921694911,1.82940634,115650.0,115640.0,1.05287082]
[1755921695119,2.44120634,115650.0,115640.0,0.67729509]
[1755921695412,2.44120634,115650.0,115640.0,0.56869579]
[1755921695612,2.08140634,115650.0,115640.0,0.56869579]
[1755921695917,1.75287309,115650.0,115640.0,0.56869579]
[1755921696107,2.08140634,115650.0,115640.0,0.64243579]
[1755921696506,1.75287309,115650.0,115640.0,0.64243579]
[1755921696713,2.08140634,115650.0,115640.0,0.69824579]
[1755921696913,2.08140634,115650.0,115640.0,0.83507579]
[1755921698720,2.08140634,115650.0,115640.0,0.56869579]
[1755921700021,1.75287309,115650.0,115640.0,0.64243579]
[1755921700217,2.08140634,115650.0,115640.0,0.64243579]
[1755921700818,2.08140634,115650.0,115640.0,0.56869579]
[1755921701523,1.75287309,115650.0,115640.0,0.56869579]
[1755921701726,2.08140634,115650.0,115640.0,0.56869579]
[1755921704022,2.08140634,115650.0,115640.0,0.69824579]
[1755921704523,2.44220634,115650.0,115640.0,0.69824579]
[1755921705928,2.44220634,115650.0,115640.0,1.11794579]
[1755921707330,2.11367309,115650.0,115640.0,1.11794579]
[1755921707525,2.44220634,115650.0,115640.0,1.11794579]
[1755921710634,2.44220634,115650.0,115640.0,0.69824579]
[1755921710938,2.44220634,115650.0,115640.0,0.56869579]
[1755921711338,2.44220634,115650.0,115640.0,0.5]
[1755921712037,2.11367309,115650.0,115640.0,0.5]
[1755921712238,2.44220634,115650.0,115640.0,0.57374]
[1755921713136,2.42292188,115650.0,115640.0,0.62955]
[1755921713938,2.42292188,115650.0,115640.0,0.69787893]
[1755921714839,2.42292188,115650.0,115640.0,1.11757893]
[1755921715238,1.61863708,115650.0,115640.0,1.11757893]
[1755921715446,2.09370383,115650.0,115640.0,1.11757893]
[1755921715634,2.06143708,115650.0,115640.0,1.11757893]
[1755921717441,1.73290383,115650.0,115640.0,1.11757893]
[1755921717635,2.06143708,115650.0,115640.0,1.11757893]
[1755921718333,1.73290383,115650.0,115640.0,1.11757893]
[1755921718538,1.14286943,115650.0,115640.0,1.54056225]
[1755921718842,1.06022943,115650.0,115640.0,1.54056225]
[1755921719034,1.17729943,115650.0,115640.0,1.29056225]
[1755921719232,1.41051943,115650.0,115640.0,1.29056225]
[1755921719437,1.73905268,115650.0,115640.0,1.39943134]
[1755921720340,1.82555708,115650.0,115640.0,1.31291954]
[1755921721238,1.82555708,115650.0,115640.0,1.20395954]
[1755921721448,1.82555708,115650.0,115640.0,1.03499802]
[1755921721945,1.82555708,115650.0,115640.0,1.14989802]
[1755921722147,1.82555708,115650.0,115640.0,1.23502802]
[1755921722744,1.32555708,115650.0,115640.0,1.20396545]
[1755921723947,1.2651234,115650.0,115640.0,1.20396545]
[1755921724546,1.2651234,115650.0,115640.0,1.29047715]
[1755921725053,1.3765034,115650.0,115640.0,1.37694867]
[1755921725240,1.2306634,115650.0,115640.0,1.37694867]
[1755921725441,1.3012834,115650.0,115640.0,1.37694867]
[1755921725647,0.97275015,115650.0,115640.0,1.37694867]
[1755921726449,0.81475015,115650.0,115640.0,1.62694867]
[1755921727245,0.58630015,115650.0,115640.0,1.62694867]
[1755921727449,0.79100015,115650.0,115640.0,1.62694867]
[1755921727648,0.95613015,115650.0,115640.0,1.62694867]
[1755921729051,1.2846634,115650.0,115640.0,1.62694867]
[1755921730152,1.2846634,115650.0,115640.0,1.54914215]
[1755921730550,0.95613015,115650.0,115640.0,1.6269235]
[1755921730758,0.45613015,115650.0,115640.0,1.6269235]
[1755921732853,0.7846634,115650.0,115640.0,1.6269235]
[1755921733054,1.0170078,115650.0,115640.0,1.6269235]
[1755921733251,0.9305034,115650.0,115640.0,1.6269235]
[1755921733453,1.2746034,115650.0,115640.0,1.6269235]
[1755921733848,1.6354034,115650.0,115640.0,1.2620235]
[1755921734048,1.2746034,115650.0,115640.0,1.3769235]
[1755921735461,1.04341,115650.0,115640.0,1.3769235]
[1755921735649,1.37194325,115650.0,115640.0,1.3769235]
[1755921735848,1.37131325,115650.0,115640.0,1.3769235]
[1755921736057,1.06956016,115650.0,115640.0,1.3769235]
[1755921736354,1.25288341,115650.0,115640.0,1.3769235]
[1755921736755,1.25262341,115650.0,115640.0,1.29914215]
[1755921737148,1.25197341,115650.0,115640.0,1.29914215]
[1755921737958,1.25107341,115650.0,115640.0,1.29914215]
[1755921738458,1.25081341,115650.0,115640.0,1.29914215]
[1755921738658,1.25070341,115650.0,115640.0,1.29914215]
[1755921739058,1.25054341,115650.0,115640.0,1.29914215]
[1755921739261,0.92167016,115650.0,115640.0,1.29914215]
[1755921739559,1.25020341,115650.0,115640.0,1.29914215]
[1755921739864,0.89642016,115650.0,115640.0,1.29914215]
[1755921740055,1.22495341,115650.0,115640.0,1.29914215]
[1755921740352,0.89642016,115650.0,115640.0,1.29914215]
[1755921740554,1.22495341,115650.0,115640.0,1.29914215]
[1755921741762,0.98292456,115650.0,115640.0,1.29914215]
[1755921742058,1.31145781,115650.0,115640.0,1.40803418]
[1755921742460,0.89642016,115650.0,115640.0,1.40803418]
[1755921742650,1.22495341,115650.0,115640.0,1.40803418]
[1755921744363,1.37814771,115650.0,115640.0,1.32152248]
[1755921744660,1.73894771,115650.0,115640.0,1.32152248]
[1755921745361,1.73894771,115650.0,115640.0,1.39242248]
[1755921745561,1.73894771,115650.0,115640.0,1.28353045]
[1755921746466,1.65244341,115650.0,115640.0,1.37004225]
[1755921747261,1.29164341,115650.0,115640.0,1.37004225]
[1755921748763,1.22495341,115650.0,115640.0,1.37004225]
[1755921749765,0.89642016,115650.0,115640.0,1.37004225]
[1755921749966,1.22495341,115650.0,115640.0,1.37004225]
[1755921750566,0.89642016,115650.0,115640.0,1.37004225]
[1755921751368,0.80205016,115650.0,115640.0,1.37004225]
[1755921752068,0.80205016,115650.0,115640.0,1.5256495]
[1755921752269,0.80205016,115650.0,115640.0,1.53844993]
[1755921752969,0.63851481,115650.0,115640.0,1.53844993]
[1755921756873,0.02678016,115650.0,115640.0,3.28522318]
[1755921757074,1.12039016,115660.0,115650.0,0.3186443]
[1755921757271,1.12039016,115660.0,115650.0,0.67599473]
[1755921757769,0.09441,115670.0,115660.0,0.6631871]
[1755921757976,1.22982325,115670.0,115660.0,1.03678433]
[1755921758175,0.90129,115670.0,115660.0,1.03678433]
[1755921758376,1.22982325,115670.0,115660.0,1.03678433]
[1755921759072,1.27323137,115670.0,115660.0,1.03678433]
[1755921759272,1.27523137,115670.0,115660.0,1.03678433]
[1755921759476,1.34192137,115670.0,115660.0,1.53678433]
[1755921759979,1.34492137,115670.0,115660.0,1.53678433]
[1755921760874,1.34492137,115670.0,115660.0,1.53690519]
[1755921761676,1.01638812,115670.0,115660.0,1.53690519]
[1755921762076,1.34492137,115670.0,115660.0,1.53690519]
[1755921762578,1.34492137,115670.0,115660.0,1.64578806]
[1755921762965,1.34492137,115670.0,115660.0,1.53690519]
[1755921763877,1.01638812,115670.0,115660.0,1.53690519]
[1755921764076,0.94969812,115670.0,115660.0,1.53690519]
[1755921764579,1.27823137,115670.0,115660.0,1.53690519]
[1755921764882,0.04840812,115670.0,115660.0,3.16478226]
[1755921765377,0.04840812,115670.0,115660.0,2.83624901]
[1755921765778,0.04840812,115670.0,115660.0,2.68064176]
[1755921766376,0.04840812,115670.0,115660.0,1.87336176]
[1755921766867,0.04480812,115670.0,115660.0,1.86044367]
[1755921767179,0.04480812,115670.0,115660.0,1.87334587]
[1755921767580,0.005,115670.0,115660.0,1.87334587]
[1755921767880,0.005,115670.0,115660.0,1.98211336]
[1755921768180,0.95691233,115680.0,115670.0,0.3186296]
[1755921768369,0.95691233,115680.0,115670.0,1.0368818]
[1755921768573,0.54189678,115680.0,115670.0,1.0368818]
[1755921768881,0.83123003,115680.0,115670.0,1.12333837]
[1755921769474,0.83523003,115680.0,115670.0,1.12333837]
[1755921769883,0.83523003,115680.0,115670.0,1.73210586]
[1755921770476,0.83723003,115680.0,115670.0,1.73210586]
[1755921771175,0.92371213,115680.0,115670.0,1.64561626]
[1755921771385,0.66186888,115680.0,115670.0,1.64561626]
[1755921771588,0.99040213,115680.0,115670.0,1.64561626]
[1755921771881,1.0346238,115680.0,115670.0,1.64561626]
[1755921772282,1.0346238,115680.0,115670.0,1.52785626]
[1755921772487,1.0346238,115680.0,115670.0,1.4503922]
[1755921773390,0.9481417,115680.0,115670.0,1.4503922]
[1755921773892,0.8814517,115680.0,115670.0,1.5368818]
[1755921774295,0.55291845,115680.0,115670.0,1.6233309]
[1755921774792,0.55291845,115680.0,115670.0,1.62331641]
[1755921775691,0.8814517,115680.0,115670.0,1.62331641]
[1755921775995,0.8814517,115680.0,115670.0,1.6104287]
[1755921776197,0.8814517,115680.0,115670.0,1.62331657]
[1755921776888,0.8814517,115680.0,115670.0,1.6104287]
[1755921777093,0.8814517,115680.0,115670.0,1.62331657]
[1755921778192,0.7870417,115680.0,115670.0,1.69420657]
[1755921778893,0.45850845,115680.0,115670.0,1.69420657]
[1755921781396,0.45850845,115680.0,115670.0,1.80297406]
[1755921782403,0.05022167,115680.0,115670.0,1.80297406]
[1755921784306,0.05022167,115680.0,115670.0,1.80298218]
[1755921784901,0.05022167,115680.0,115670.0,1.80298213]
[1755921785506,0.05022167,115680.0,115670.0,1.69421464]
[1755921786204,0.05022167,115680.0,115670.0,2.50165464]
[1755921787095,0.05022167,115680.0,115670.0,2.61043739]
[1755921787505,0.05022167,115680.0,115670.0,2.50165464]
[1755921788105,0.05022167,115680.0,115670.0,1.69421464]
[1755921790204,0.37875492,115680.0,115670.0,1.60772504]
[1755921790404,0.37875492,115680.0,115670.0,1.69421484]
[1755921790607,0.05022167,115680.0,115670.0,1.69421484]
[1755921790807,0.37875492,115680.0,115670.0,1.69421484]
[1755921792710,0.05022167,115680.0,115670.0,1.69421484]
[1755921793313,0.05022167,115680.0,115670.0,1.69415824]
[1755921793813,0.05022167,115680.0,115670.0,1.69415835]
[1755921794409,0.05022167,115680.0,115670.0,1.60766855]
[1755921794410,0.58411395,115680.0,115670.0,1.60766855]
[1755921794616,0.49763165,115680.0,115670.0,1.52121945]
[1755921794913,0.58411395,115680.0,115670.0,1.52121945]
[1755921795117,0.58331395,115680.0,115670.0,1.52121945]
[1755921795316,0.49683165,115680.0,115670.0,1.52121945]
[1755921795520,0.1682984,115680.0,115670.0,1.52121945]
[1755921795808,0.05022167,115680.0,115670.0,1.60770925]
[1755921796213,0.05022167,115680.0,115670.0,2.0226916]
[1755921798716,0.05022167,115680.0,115670.0,1.69415835]
[1755921799208,0.1665132,115700.0,115680.0,0.0864772]
[1755921799209,0.08004,115700.0,115680.0,0.0864772]
[1755921799412,1.03540533,115700.0,115690.0,1.04983996]
[1755921799613,1.03540533,115700.0,115690.0,1.0626839]
[1755921799814,0.95536533,115700.0,115690.0,1.149133]
[1755921800008,1.28389858,115700.0,115690.0,1.149133]
[1755921800519,1.28389858,115700.0,115690.0,1.04020304]
[1755921800714,1.28689858,115700.0,115690.0,1.04020304]
[1755921801221,1.37336578,115700.0,115690.0,1.04020304]
[1755921801519,1.68319578,115700.0,115690.0,1.04120304]
[1755921801918,1.68050578,115700.0,115690.0,1.04120304]
[1755921802215,1.68050578,115700.0,115690.0,1.0283591]
[1755921802422,1.35197253,115700.0,115690.0,1.04119405]
[1755921802627,1.68050578,115700.0,115690.0,1.04119405]
[1755921803028,1.35197253,115700.0,115690.0,1.04119405]
[1755921803223,1.68050578,115700.0,115690.0,1.04119405]
[1755921804823,1.61674578,115700.0,115690.0,1.04119405]
[1755921807026,1.61674578,115700.0,115690.0,1.15012401]
[1755921807222,1.67781578,115700.0,115690.0,1.03334401]
[1755921807430,1.67781578,115700.0,115690.0,1.06497491]
[1755921808131,1.61674578,115700.0,115690.0,0.95604495]
[1755921808929,1.61674578,115700.0,115690.0,1.06497491]
[1755921809330,1.61674578,115700.0,115690.0,0.95604495]
[1755921809725,1.61674578,115700.0,115690.0,1.06497491]
[1755921809931,1.36674578,115700.0,115690.0,1.06497491]
[1755921810330,1.3334223,115700.0,115690.0,1.06497491]
[1755921811519,1.3334223,115700.0,115690.0,1.06497242]
[1755921811724,1.2469551,115700.0,115690.0,1.15140657]
[1755921811929,1.2469551,115700.0,115690.0,1.15140633]
[1755921812732,1.2469551,115700.0,115690.0,1.04247637]
[1755921813136,0.95174533,115700.0,115690.0,1.04247637]
[1755921813325,1.2469551,115700.0,115690.0,1.04247637]
[1755921813525,1.2469551,115700.0,115690.0,1.52964415]
[1755921814134,1.3334225,115700.0,115690.0,1.52964415]
[1755921816734,1.3944925,115700.0,115690.0,1.44321]
[1755921817240,0.5191025,115700.0,115690.0,1.44321]
[1755921817441,1.3313025,115700.0,115690.0,1.44321]
[1755921819437,1.03609273,115700.0,115690.0,1.44321]
[1755921819738,1.2450751,115700.0,115690.0,1.82485392]
[1755921819941,1.2450751,115700.0,115690.0,1.52964415]
[1755921821142,1.03633273,115700.0,115690.0,1.52964415]
[1755921821345,1.3315425,115700.0,115690.0,1.52964415]
[1755921821842,1.03633273,115700.0,115690.0,1.52964415]
[1755921822044,1.3315425,115700.0,115690.0,1.52964415]
[1755921823138,1.03633273,115700.0,115690.0,1.52964415]
[1755921823443,1.3315425,115700.0,115690.0,1.52964415]
[1755921825549,0.85692533,115700.0,115690.0,1.6074186]
[1755921825741,1.1521351,115700.0,115690.0,1.6074186]
[1755921826047,1.1521351,115700.0,115690.0,1.6782886]
[1755921826247,1.2386025,115700.0,115690.0,1.6782886]
[1755921829951,1.2386025,115700.0,115690.0,1.60051415]
[1755921830251,1.2386025,115700.0,115690.0,1.67829396]
[1755921830553,1.2386025,115700.0,115690.0,1.76476886]
[1755921831451,0.94339273,115700.0,115690.0,1.76476886]
[1755921831656,1.3287025,115700.0,115690.0,1.76476886]
[1755921832855,1.3287025,115700.0,115690.0,1.68698905]
[1755921833256,1.3287025,115700.0,115690.0,1.79587328]
[1755921833656,1.3287025,115700.0,115690.0,2.13780607]
[1755921834555,1.2422351,115700.0,115690.0,2.13780607]
[1755921834956,0.94702533,115700.0,115690.0,2.13780607]
[1755921835156,1.2422351,115700.0,115690.0,2.13780607]
[1755921839758,1.2422351,115700.0,115690.0,1.8425963]
[1755921839952,1.2422351,115700.0,115690.0,2.13780607]
[1755921840155,1.2422351,115700.0,115690.0,1.8425963]
[1755921840559,1.3287022,115700.0,115690.0,1.7561214]
[1755921841763,1.03349243,115700.0,115690.0,1.7561214]
[1755921841962,1.3287022,115700.0,115690.0,1.7561214]
[1755921842962,1.03349243,115700.0,115690.0,1.7561214]
[1755921843261,1.3249022,115700.0,115690.0,1.7561214]
[1755921843460,1.3249022,115700.0,115690.0,2.05133117]
[1755921844261,1.3249022,115700.0,115690.0,1.7561214]
[1755921846258,1.3859722,115700.0,115690.0,1.26859057]
[1755921846463,1.6359722,115700.0,115690.0,1.26859057]
[1755921846662,1.6359722,115700.0,115690.0,1.0352]
[1755921847166,1.6359722,115700.0,115690.0,1.14409665]
[1755921847356,1.6359722,115700.0,115690.0,1.26098665]
[1755921847662,1.6359722,115700.0,115690.0,1.14409665]
[1755921847962,1.6359722,115700.0,115690.0,1.0352]
[1755921848665,1.6359722,115700.0,115690.0,0.94857]
[1755921849166,1.6359722,115700.0,115690.0,1.0263485]
[1755921849465,1.6359722,115700.0,115690.0,0.5263485]
[1755921850062,2.29278197,115700.0,115690.0,0.09138957]
[1755921850266,2.29278197,115700.0,115690.0,0.14964072]
[1755921850565,2.29278197,115700.0,115690.0,0.07187]
[1755921852666,2.29278197,115700.0,115690.0,0.14964072]
[1755921852968,2.29278197,115700.0,115690.0,0.07187]
[1755921853267,2.29278197,115700.0,115690.0,0.14964072]
[1755921855470,1.70236243,115700.0,115690.0,0.22986072]
[1755921855769,2.29278197,115700.0,115690.0,0.22986072]
[1755921856472,2.29198197,115700.0,115690.0,0.22986072]
[1755921856665,1.9967722,115700.0,115690.0,0.28862072]
[1755921856969,1.9967722,115700.0,115690.0,0.72986072]
[1755921860077,1.7467722,115700.0,115690.0,0.61297072]
[1755921860374,1.7467722,115700.0,115690.0,0.72986072]
[1755921861172,1.76615565,115700.0,115690.0,0.72986072]
[1755921862275,2.06136542,115700.0,115690.0,0.72986072]
[1755921862476,1.76615565,115700.0,115690.0,0.72986072]
[1755921862976,1.76615565,115700.0,115690.0,0.65899072]
[1755921864682,1.76573722,115700.0,115690.0,0.65899072]
[1755921866680,1.76573722,115700.0,115690.0,0.72986072]
[1755921867282,1.76573722,115700.0,115690.0,0.65209]
[1755921868586,1.40493722,115700.0,115690.0,0.65209]
[1755921868887,1.76573722,115700.0,115690.0,0.65209]
[1755921870291,1.47052745,115700.0,115690.0,0.65209]
[1755921870483,1.76573722,115700.0,115690.0,0.65209]
[1755921870885,1.76573722,115700.0,115690.0,0.72986072]
[1755921871688,1.76573722,115700.0,115690.0,0.97986072]
[1755921871888,1.70466722,115700.0,115690.0,0.97986072]
[1755921872088,1.25740012,115700.0,115690.0,1.34057285]
[1755921872294,1.25740012,115700.0,115690.0,1.26289]
[1755921872592,1.25740012,115700.0,115690.0,1.37178665]
[1755921872991,1.34386742,115700.0,115690.0,1.37178665]
[1755921874198,1.42389742,115700.0,115690.0,1.37178665]
[1755921875597,1.12868765,115700.0,115690.0,1.37178665]
[1755921875895,1.42389742,115700.0,115690.0,1.37178665]
[1755921877897,1.12868765,115700.0,115690.0,1.37178665]
[1755921878101,1.42389742,115700.0,115690.0,1.37178665]
[1755921879002,1.56083742,115700.0,115690.0,1.37178665]
[1755921880895,1.3184651,115700.0,115690.0,1.58990537]
[1755921881197,0.93315533,115700.0,115690.0,2.23100872]
[1755921881397,1.2283651,115700.0,115690.0,2.23100872]
[1755921882796,1.2283651,115700.0,115690.0,2.33981344]
[1755921883992,1.2283651,115700.0,115690.0,2.25333864]
[1755921884394,1.01962263,115700.0,115690.0,2.25333864]
[1755921884697,1.3148324,115700.0,115690.0,2.25333864]
[1755921884997,1.3148324,115700.0,115690.0,1.95812887]
[1755921885394,1.3148324,115700.0,115690.0,2.25333864]
[1755921887295,1.3148324,115700.0,115690.0,2.14453392]
[1755921888797,1.3148324,115700.0,115690.0,1.84932415]
[1755921889100,1.01962263,115700.0,115690.0,1.84932415]
[1755921889290,1.4517724,115700.0,115690.0,1.84932415]
[1755921893702,1.3148324,115700.0,115690.0,1.84932415]
[1755921894406,1.01962263,115700.0,115690.0,1.84932415]
[1755921894604,1.3148324,115700.0,115690.0,2.14453392]
[1755921895702,1.3148324,115700.0,115690.0,1.84932415]
[1755921895903,1.3148324,115700.0,115690.0,1.95811751]
[1755921897203,1.3148324,115700.0,115690.0,2.25332728]
[1755921897404,1.3148324,115700.0,115690.0,2.14453392]
[1755921897806,1.01962263,115700.0,115690.0,2.14453392]
[1755921898003,1.3148324,115700.0,115690.0,2.14453392]
[1755921898712,1.01962263,115700.0,115690.0,2.14453392]
[1755921899013,1.3148324,115700.0,115690.0,1.89453392]
[1755921899209,1.01962263,115700.0,115690.0,1.89453392]
[1755921899412,1.3148324,115700.0,115690.0,1.89453392]
[1755921899803,1.4622324,115700.0,115690.0,1.59932415]
[1755921900305,1.4622324,115700.0,115690.0,1.59227415]
[1755921900508,1.4622324,115700.0,115690.0,1.88748392]
[1755921900699,1.4622324,115700.0,115690.0,1.0352]
[1755921900900,2.0730324,115700.0,115690.0,1.05961833]
[1755921901306,2.0730324,115700.0,115690.0,1.16945833]
[1755921901506,2.0730324,115700.0,115690.0,1.25360833]
[1755921902007,2.0730324,115700.0,115690.0,1.14475]
[1755921902706,1.77782263,115700.0,115690.0,1.43995977]
[1755921902904,2.0730324,115700.0,115690.0,1.43995977]
[1755921903305,2.0730324,115700.0,115690.0,1.14475]
[1755921903504,1.84191545,115700.0,115690.0,1.03491]
[1755921903810,1.84191545,115700.0,115690.0,1.14381097]
[1755921904611,1.84191545,115700.0,115690.0,1.25365097]
[1755921905706,1.84191545,115700.0,115690.0,1.05966097]
[1755921905905,2.09191545,115700.0,115690.0,1.05966097]
[1755921906307,2.09191545,115700.0,115690.0,1.16950097]
[1755921906511,2.09191545,115700.0,115690.0,1.14475]
[1755921907312,1.79670568,115700.0,115690.0,1.14475]
[1755921907511,2.09191545,115700.0,115690.0,1.14475]
[1755921907902,2.09191545,115700.0,115690.0,1.25365097]
[1755921911516,2.09191545,115700.0,115690.0,1.26640912]
[1755921914422,2.09191545,115700.0,115690.0,0.43964593]
[1755921914622,2.09191545,115700.0,115690.0,0.33074496]
[1755921915124,2.09191545,115700.0,115690.0,0.31586635]
[1755921915315,2.09191545,115700.0,115690.0,0.23810593]
[1755921915619,2.09191545,115700.0,115690.0,0.01275815]
[1755921916217,2.09191545,115700.0,115690.0,0.00575815]
[1755921916709,0.1859248,115690.0,115680.0,0.65120042]
[1755921916915,0.98933457,115690.0,115680.0,0.65120042]
[1755921919320,0.98933457,115690.0,115680.0,0.68234097]
[1755921919521,1.06937457,115690.0,115680.0,0.76004757]
[1755921919722,1.06937457,115690.0,115680.0,0.6511466]
[1755921920620,1.06937457,115690.0,115680.0,0.57344]
[1755921922518,1.06937457,115690.0,115680.0,0.65112633]
[1755921925322,1.36458434,115690.0,115680.0,0.54128633]
[1755921925620,1.36458434,115690.0,115680.0,0.61830743]
[1755921925621,1.06937457,115690.0,115680.0,0.61830743]
[1755921928328,0.7741648,115690.0,115680.0,0.61830743]
[1755921928526,1.06937457,115690.0,115680.0,0.61830743]
[1755921929325,1.06937457,115690.0,115680.0,0.5406211]
[1755921930227,1.06937457,115690.0,115680.0,0.61832344]
[1755921936937,0.7741648,115690.0,115680.0,0.61832344]
[1755921937236,1.06937457,115690.0,115680.0,0.61832344]
[1755921937436,1.06937457,115690.0,115680.0,0.5406211]
[1755921937738,1.06937457,115690.0,115680.0,0.61835811]
[1755921938334,1.06937457,115690.0,115680.0,0.5406211]
[1755921939249,1.06937457,115690.0,115680.0,0.64952207]
[1755921939638,1.06937457,115690.0,115680.0,0.5406211]
[1755921941246,1.06937457,115690.0,115680.0,0.64952207]
[1755921941641,0.70857457,115690.0,115680.0,1.19663087]
[1755921941836,0.56117457,115690.0,115680.0,1.20942177]
[1755921942044,0.56117457,115690.0,115680.0,1.56832274]
[1755921942239,0.56117457,115690.0,115680.0,1.27311297]
[1755921944049,0.56117457,115690.0,115680.0,1.2731175]
[1755921945750,0.2659648,115690.0,115680.0,1.2731175]
[1755921945951,0.56117457,115690.0,115680.0,1.2731175]
[1755921947055,0.56117457,115690.0,115680.0,1.26032207]
[1755921947255,0.56117457,115690.0,115680.0,1.27312084]
[1755921947660,0.56117457,115690.0,115680.0,1.2731206]
[1755921948850,0.56117457,115690.0,115680.0,1.0231206]
[1755921950455,0.56117457,115690.0,115680.0,2.03646357]
[1755921950456,0.08004,115690.0,115680.0,2.03646357]
[1755921950647,0.60133,115690.0,115680.0,1.9275626]
[1755921950852,0.60133,115690.0,115680.0,1.63235283]
[1755921951160,0.60133,115690.0,115680.0,1.78796008]
[1755921951560,0.60133,115690.0,115680.0,2.28796008]
[1755921955761,0.60133,115690.0,115680.0,2.34694008]
[1755921956062,0.6878044,115690.0,115680.0,2.26902308]
[1755921956364,0.6878044,115690.0,115680.0,2.26900281]
[1755921957162,0.98301417,115690.0,115680.0,2.26900281]
[1755921958256,0.98301417,115690.0,115680.0,1.97379304]
[1755921958451,1.05833417,115690.0,115680.0,2.18252101]
[1755921958657,1.16924417,115690.0,115680.0,2.26900291]
[1755921958964,1.16924417,115690.0,115680.0,2.01900291]
[1755921959563,1.20228417,115690.0,115680.0,2.01900291]
[1755921960257,1.34052417,115690.0,115680.0,1.93252101]
[1755921960457,1.34052417,115690.0,115680.0,1.63731124]
[1755921960662,1.34052417,115690.0,115680.0,1.19006961]
[1755921961268,1.34052417,115690.0,115680.0,1.11237936]
[1755921961664,1.34052417,115690.0,115680.0,1.22114571]
[1755921962462,1.34132417,115690.0,115680.0,1.22114571]
[1755921962858,1.0461144,115690.0,115680.0,1.22114571]
[1755921963054,1.34132417,115690.0,115680.0,1.22114571]
[1755921964369,1.34132417,115690.0,115680.0,1.20836745]
[1755921964563,1.34132417,115690.0,115680.0,1.22114426]
[1755921964868,1.34132417,115690.0,115680.0,1.20836745]
[1755921965069,1.34132417,115690.0,115680.0,1.22114426]
[1755921965261,1.34132417,115690.0,115680.0,1.21729426]
[1755921972072,1.34132417,115690.0,115680.0,1.20451745]
[1755921976174,1.0461144,115690.0,115680.0,1.20451745]
[1755921976365,1.34132417,115690.0,115680.0,1.20451745]
[1755921977677,1.0461144,115690.0,115680.0,1.20451745]
[1755921977870,1.34132417,115690.0,115680.0,1.20451745]
[1755921986583,1.0461144,115690.0,115680.0,1.20451745]
[1755921986776,1.34132417,115690.0,115680.0,1.20451745]
[1755921988284,1.34132417,115690.0,115680.0,1.0957511]